[Event "December 19 Early 2023"]
[Site "https://www.chess.com"]
[Date "2023.12.19"]
[Round "3"]
[White "Silva, Pedro Gil Ferreira Da"]
[Black "Manukyan, Sargis A."]
[Result "0-1"]
[Board "139"]
[TimeControl "180+1"]
[WhiteFideId "1946102"]
[BlackFideId "13303970"]
[WhiteElo "2112"]
[BlackElo "2186"]
[WhiteTeam "POR"]
[BlackTeam "ARM"]
[WhiteClock "0:02:03"]
[BlackClock "0:02:10"]

1. c4 {[%clk 0:02:59]}  e6 {[%clk 0:03:00]} 2. Nf3 {[%clk 0:02:58]}  d5 {[%clk 0:03:00]} 3. g3 {[%clk 0:02:58]}  Nf6 {[%clk 0:03:00]} 4. Bg2 {[%clk 0:02:58]}  Be7 {[%clk 0:03:01]} 5. O-O {[%clk 0:02:58]}  O-O {[%clk 0:03:02]} 6. b3 {[%clk 0:02:59]}  c5 {[%clk 0:03:02]} 7. Bb2 {[%clk 0:02:59]}  d4 {[%clk 0:03:02]} 8. e3 {[%clk 0:02:59]}  Nc6 {[%clk 0:03:03]} 9. exd4 {[%clk 0:02:59]}  cxd4 {[%clk 0:03:04]} 10. Re1 {[%clk 0:03:00]}  Bc5 {[%clk 0:03:00]} 11. d3 {[%clk 0:02:59]}  Re8 {[%clk 0:03:00]} 12. a3 {[%clk 0:02:58]}  a5 {[%clk 0:03:00]} 13. Ne5 {[%clk 0:02:58]}  Bd7 {[%clk 0:02:55]} 14. Nd2 {[%clk 0:02:55]}  Qc7 {[%clk 0:02:53]} 15. Nxd7 {[%clk 0:02:53]}  Nxd7 {[%clk 0:02:53]} 16. Ne4 {[%clk 0:02:47]}  Bf8 {[%clk 0:02:53]} 17. Bc1 {[%clk 0:02:45]}  h6 {[%clk 0:02:52]} 18. Bd2 {[%clk 0:02:44]}  f5 {[%clk 0:02:47]} 19. Qh5 {[%clk 0:02:31]}  fxe4 {[%clk 0:02:46]} 20. Bxe4 {[%clk 0:02:32]}  Nf6 {[%clk 0:02:45]} 21. Qg6 {[%clk 0:02:32]}  Nxe4 {[%clk 0:02:46]} 22. Rxe4 {[%clk 0:02:33]}  Qf7 {[%clk 0:02:45]} 23. Qg4 {[%clk 0:02:31]}  Qf5 {[%clk 0:02:43]} 24. Qe2 {[%clk 0:02:31]}  e5 {[%clk 0:02:37]} 25. f4 {[%clk 0:02:29]}  Re6 {[%clk 0:02:30]} 26. Rf1 {[%clk 0:02:19]}  Rae8 {[%clk 0:02:26]} 27. fxe5 {[%clk 0:02:18]}  Qg6 {[%clk 0:02:15]} 28. Rg4 {[%clk 0:02:16]}  Rxe5 {[%clk 0:02:11]} 29. Qxe5 {[%clk 0:02:03]}  Nxe5 {[%clk 0:02:10]} 0-1

[Event "December 19 Early 2023"]
[Site "https://www.chess.com"]
[Date "2023.12.19"]
[Round "3"]
[White "Trost, Edvin"]
[Black "Skibbe, Willi"]
[Result "1-0"]
[Board "140"]
[TimeControl "180+1"]
[WhiteFideId "1729519"]
[BlackFideId "4682190"]
[WhiteElo "2385"]
[BlackElo "2357"]
[WhiteTeam "SWE"]
[BlackTeam "GER"]
[WhiteClock "0:01:03"]
[BlackClock "0:00:09"]

1. e4 {[%clk 0:02:58]}  e6 {[%clk 0:02:59]} 2. Nc3 {[%clk 0:02:55]}  d5 {[%clk 0:02:59]} 3. d4 {[%clk 0:02:56]}  Nf6 {[%clk 0:02:59]} 4. e5 {[%clk 0:02:55]}  Nfd7 {[%clk 0:02:58]} 5. Nce2 {[%clk 0:02:55]}  c5 {[%clk 0:02:54]} 6. c3 {[%clk 0:02:54]}  Nc6 {[%clk 0:02:46]} 7. f4 {[%clk 0:02:48]}  Be7 {[%clk 0:02:43]} 8. Nf3 {[%clk 0:02:47]}  b5 {[%clk 0:02:43]} 9. g3 {[%clk 0:02:44]}  b4 {[%clk 0:02:41]} 10. Bh3 {[%clk 0:02:42]}  f5 {[%clk 0:02:15]} 11. exf6 {[%clk 0:02:34]}  Nxf6 {[%clk 0:02:11]} 12. O-O {[%clk 0:02:32]}  Qb6 {[%clk 0:02:07]} 13. Be3 {[%clk 0:02:29]}  O-O {[%clk 0:02:06]} 14. Ng5 {[%clk 0:02:27]}  Nd8 {[%clk 0:01:49]} 15. dxc5 {[%clk 0:02:17]}  Bxc5 {[%clk 0:01:39]} 16. Bxc5 {[%clk 0:02:18]}  Qxc5+ {[%clk 0:01:38]} 17. Qd4 {[%clk 0:02:19]}  Qxd4+ {[%clk 0:01:28]} 18. Nxd4 {[%clk 0:02:16]}  bxc3 {[%clk 0:01:20]} 19. bxc3 {[%clk 0:02:17]}  e5 {[%clk 0:00:58]} 20. fxe5 {[%clk 0:01:54]}  Bxh3 {[%clk 0:00:51]} 21. Nxh3 {[%clk 0:01:55]}  Ne4 {[%clk 0:00:51]} 22. Nf4 {[%clk 0:01:52]}  Nxc3 {[%clk 0:00:42]} 23. Rac1 {[%clk 0:01:51]}  Nxa2 {[%clk 0:00:41]} 24. Rc7 {[%clk 0:01:48]}  Nb4 {[%clk 0:00:38]} 25. e6 {[%clk 0:01:44]}  Re8 {[%clk 0:00:31]} 26. e7 {[%clk 0:01:43]}  Nf7 {[%clk 0:00:29]} 27. Nfe6 {[%clk 0:01:43]}  a5 {[%clk 0:00:25]} 28. Rb7 {[%clk 0:01:32]}  Nd3 {[%clk 0:00:22]} 29. Rb3 {[%clk 0:01:21]}  Nde5 {[%clk 0:00:14]} 30. Nc7 {[%clk 0:01:19]}  a4 {[%clk 0:00:14]} 31. Ra3 {[%clk 0:01:19]}  Nc4 {[%clk 0:00:14]} 32. Raf3 {[%clk 0:01:17]}  Nfe5 {[%clk 0:00:13]} 33. Rf5 {[%clk 0:01:10]}  Ne3 {[%clk 0:00:12]} 34. Nxe8 {[%clk 0:01:03]}  Nxf1 {[%clk 0:00:09]} 35. Rf8# {[%clk 0:01:03]} 1-0

[Event "December 19 Early 2023"]
[Site "https://www.chess.com"]
[Date "2023.12.19"]
[Round "3"]
[White "Santos, Rafael Ventura Dos"]
[Black "Novikov, Evgenij"]
[Result "1-0"]
[Board "141"]
[TimeControl "180+1"]
[WhiteFideId "2122227"]
[BlackFideId "4125380"]
[WhiteElo "2138"]
[BlackElo "2242"]
[WhiteTeam "BRA"]
[BlackTeam "RUS"]
[WhiteClock "0:00:19"]
[BlackClock "0:00:00"]

1. e4 {[%clk 0:03:00]}  c5 {[%clk 0:02:59]} 2. c4 {[%clk 0:03:00]}  Nc6 {[%clk 0:02:56]} 3. Ne2 {[%clk 0:03:01]}  e5 {[%clk 0:02:48]} 4. g3 {[%clk 0:03:00]}  h5 {[%clk 0:02:46]} 5. h3 {[%clk 0:02:58]}  h4 {[%clk 0:02:44]} 6. g4 {[%clk 0:02:58]}  Nge7 {[%clk 0:02:45]} 7. Bg2 {[%clk 0:02:57]}  g5 {[%clk 0:02:40]} 8. d3 {[%clk 0:02:57]}  Ng6 {[%clk 0:02:39]} 9. Nbc3 {[%clk 0:02:55]}  Bd6 {[%clk 0:02:22]} 10. Be3 {[%clk 0:02:54]}  O-O {[%clk 0:02:15]} 11. Nd5 {[%clk 0:02:46]}  f6 {[%clk 0:02:09]} 12. O-O {[%clk 0:02:40]}  b6 {[%clk 0:02:02]} 13. a3 {[%clk 0:02:39]}  Nd4 {[%clk 0:01:46]} 14. b4 {[%clk 0:02:23]}  Bb7 {[%clk 0:01:39]} 15. Nec3 {[%clk 0:02:18]}  Kg7 {[%clk 0:01:30]} 16. Rb1 {[%clk 0:02:10]}  Bc6 {[%clk 0:01:27]} 17. b5 {[%clk 0:01:40]}  Bb7 {[%clk 0:01:26]} 18. a4 {[%clk 0:01:39]}  Ne6 {[%clk 0:01:14]} 19. Qd2 {[%clk 0:01:31]}  Nef4 {[%clk 0:01:14]} 20. Rb2 {[%clk 0:01:26]}  Nxg2 {[%clk 0:01:01]} 21. Kxg2 {[%clk 0:01:26]}  Nf4+ {[%clk 0:01:02]} 22. Bxf4 {[%clk 0:01:11]}  exf4 {[%clk 0:01:00]} 23. f3 {[%clk 0:01:10]}  Be5 {[%clk 0:00:57]} 24. Rb3 {[%clk 0:01:10]}  d6 {[%clk 0:00:36]} 25. Re1 {[%clk 0:01:07]}  Qd7 {[%clk 0:00:34]} 26. Qa2 {[%clk 0:00:57]}  Qf7 {[%clk 0:00:29]} 27. a5 {[%clk 0:00:51]}  bxa5 {[%clk 0:00:13]} 28. Qxa5 {[%clk 0:00:50]}  a6 {[%clk 0:00:14]} 29. b6 {[%clk 0:00:49]}  Rac8 {[%clk 0:00:06]} 30. Qa2 {[%clk 0:00:46]}  Bd4 {[%clk 0:00:05]} 31. Qc2 {[%clk 0:00:46]}  Be5 {[%clk 0:00:05]} 32. Qe2 {[%clk 0:00:45]}  Qd7 {[%clk 0:00:05]} 33. Reb1 {[%clk 0:00:45]}  Rf7 {[%clk 0:00:05]} 34. Qd2 {[%clk 0:00:41]}  Qc6 {[%clk 0:00:05]} 35. Qa2 {[%clk 0:00:41]}  Bd4 {[%clk 0:00:06]} 36. Qa4 {[%clk 0:00:33]}  Qd7 {[%clk 0:00:05]} 37. Qxd7 {[%clk 0:00:33]}  Rxd7 {[%clk 0:00:05]} 38. Ra3 {[%clk 0:00:31]}  Kf7 {[%clk 0:00:05]} 39. Rbb3 {[%clk 0:00:29]}  Ke6 {[%clk 0:00:05]} 40. Nc7+ {[%clk 0:00:26]}  Ke5 {[%clk 0:00:00]} 41. N3d5 {[%clk 0:00:19]} 1-0

[Event "December 19 Early 2023"]
[Site "https://www.chess.com"]
[Date "2023.12.19"]
[Round "3"]
[White "Spata, German"]
[Black "Buscar, Michael"]
[Result "1-0"]
[Board "146"]
[TimeControl "180+1"]
[WhiteFideId "113026"]
[BlackFideId "2603616"]
[WhiteElo "2260"]
[BlackElo "2010"]
[WhiteTeam "ARG"]
[BlackTeam "CAN"]
[WhiteClock "0:00:16"]
[BlackClock "0:00:13"]

1. Nf3 {[%clk 0:02:56]}  Nf6 {[%clk 0:02:58]} 2. e3 {[%clk 0:02:56]}  b6 {[%clk 0:02:57]} 3. g3 {[%clk 0:02:56]}  Bb7 {[%clk 0:02:58]} 4. Bg2 {[%clk 0:02:56]}  e6 {[%clk 0:02:56]} 5. b3 {[%clk 0:02:56]}  c5 {[%clk 0:02:56]} 6. Bb2 {[%clk 0:02:56]}  Be7 {[%clk 0:02:57]} 7. O-O {[%clk 0:02:56]}  O-O {[%clk 0:02:57]} 8. c4 {[%clk 0:02:57]}  d6 {[%clk 0:02:55]} 9. Nc3 {[%clk 0:02:56]}  Nbd7 {[%clk 0:02:51]} 10. Qe2 {[%clk 0:02:55]}  Ne4 {[%clk 0:02:44]} 11. Rad1 {[%clk 0:02:50]}  Bf6 {[%clk 0:02:37]} 12. d4 {[%clk 0:02:38]}  Nxc3 {[%clk 0:02:25]} 13. Bxc3 {[%clk 0:02:38]}  cxd4 {[%clk 0:02:22]} 14. Bxd4 {[%clk 0:02:36]}  Qc7 {[%clk 0:02:15]} 15. Qb2 {[%clk 0:02:30]}  Rfd8 {[%clk 0:01:58]} 16. Rd2 {[%clk 0:02:27]}  d5 {[%clk 0:01:50]} 17. cxd5 {[%clk 0:02:23]}  Bxd5 {[%clk 0:01:50]} 18. Rc1 {[%clk 0:02:00]}  Qb7 {[%clk 0:01:49]} 19. Ne1 {[%clk 0:01:56]}  Bxg2 {[%clk 0:01:42]} 20. Nxg2 {[%clk 0:01:57]}  Rdc8 {[%clk 0:01:14]} 21. Rcd1 {[%clk 0:01:51]}  Bxd4 {[%clk 0:01:12]} 22. Qxd4 {[%clk 0:01:51]}  Nf8 {[%clk 0:01:06]} 23. Nf4 {[%clk 0:01:45]}  Qe7 {[%clk 0:00:55]} 24. h4 {[%clk 0:01:26]}  Rc7 {[%clk 0:00:53]} 25. Nh5 {[%clk 0:01:13]}  e5 {[%clk 0:00:48]} 26. Qd6 {[%clk 0:00:59]}  Qxd6 {[%clk 0:00:32]} 27. Rxd6 {[%clk 0:00:59]}  f6 {[%clk 0:00:28]} 28. g4 {[%clk 0:00:57]}  Rac8 {[%clk 0:00:26]} 29. Ng3 {[%clk 0:00:53]}  Rc2 {[%clk 0:00:23]} 30. R6d2 {[%clk 0:00:53]}  Kf7 {[%clk 0:00:23]} 31. Nf5 {[%clk 0:00:52]}  Rxd2 {[%clk 0:00:17]} 32. Rxd2 {[%clk 0:00:52]}  Rc1+ {[%clk 0:00:17]} 33. Kg2 {[%clk 0:00:53]}  Rc7 {[%clk 0:00:18]} 34. Kf3 {[%clk 0:00:46]}  Rd7 {[%clk 0:00:18]} 35. Rc2 {[%clk 0:00:46]}  g6 {[%clk 0:00:18]} 36. Ng3 {[%clk 0:00:45]}  Ne6 {[%clk 0:00:18]} 37. Ne4 {[%clk 0:00:44]}  Ke7 {[%clk 0:00:16]} 38. b4 {[%clk 0:00:42]}  Rc7 {[%clk 0:00:16]} 39. Rxc7+ {[%clk 0:00:34]}  Nxc7 {[%clk 0:00:17]} 40. Nc3 {[%clk 0:00:35]}  Kd6 {[%clk 0:00:17]} 41. Ke4 {[%clk 0:00:35]}  Ke6 {[%clk 0:00:16]} 42. a3 {[%clk 0:00:30]}  f5+ {[%clk 0:00:16]} 43. gxf5+ {[%clk 0:00:29]}  gxf5+ {[%clk 0:00:17]} 44. Kd3 {[%clk 0:00:29]}  Kd6 {[%clk 0:00:17]} 45. Kc4 {[%clk 0:00:27]}  Kc6 {[%clk 0:00:17]} 46. a4 {[%clk 0:00:24]}  a6 {[%clk 0:00:16]} 47. f3 {[%clk 0:00:21]}  Kd6 {[%clk 0:00:16]} 48. b5 {[%clk 0:00:19]}  axb5+ {[%clk 0:00:14]} 49. Nxb5+ {[%clk 0:00:20]}  Kc6 {[%clk 0:00:14]} 50. Nxc7 {[%clk 0:00:19]}  Kxc7 {[%clk 0:00:15]} 51. Kd5 {[%clk 0:00:19]}  e4 {[%clk 0:00:13]} 52. fxe4 {[%clk 0:00:18]}  fxe4 {[%clk 0:00:14]} 53. Kxe4 {[%clk 0:00:18]}  Kc6 {[%clk 0:00:15]} 54. Kd4 {[%clk 0:00:18]}  b5 {[%clk 0:00:13]} 55. axb5+ {[%clk 0:00:16]} 1-0

[Event "December 19 Early 2023"]
[Site "https://www.chess.com"]
[Date "2023.12.19"]
[Round "3"]
[White "Belov, Alexei"]
[Black "Tarasova, Viktoriya"]
[Result "1-0"]
[Board "150"]
[TimeControl "180+1"]
[WhiteFideId "4128206"]
[BlackFideId "4175840"]
[WhiteElo "2577"]
[BlackElo "2182"]
[WhiteTeam "RUS"]
[BlackTeam "RUS"]
[WhiteClock "0:00:15"]
[BlackClock "0:00:00"]

1. e4 {[%clk 0:03:00]}  e5 {[%clk 0:02:59]} 2. Nf3 {[%clk 0:03:01]}  Nc6 {[%clk 0:02:58]} 3. Bb5 {[%clk 0:03:01]}  Nf6 {[%clk 0:02:57]} 4. O-O {[%clk 0:02:59]}  Nxe4 {[%clk 0:02:57]} 5. d4 {[%clk 0:03:00]}  Nd6 {[%clk 0:02:57]} 6. Bxc6 {[%clk 0:03:01]}  dxc6 {[%clk 0:02:57]} 7. dxe5 {[%clk 0:03:01]}  Nf5 {[%clk 0:02:57]} 8. Qxd8+ {[%clk 0:03:02]}  Kxd8 {[%clk 0:02:58]} 9. Rd1+ {[%clk 0:03:03]}  Ke8 {[%clk 0:02:58]} 10. Nc3 {[%clk 0:03:04]}  h6 {[%clk 0:02:55]} 11. b3 {[%clk 0:03:03]}  Be6 {[%clk 0:02:53]} 12. h3 {[%clk 0:03:03]}  Ne7 {[%clk 0:02:51]} 13. Nd4 {[%clk 0:02:56]}  Ng6 {[%clk 0:02:43]} 14. Bb2 {[%clk 0:02:26]}  Rd8 {[%clk 0:02:28]} 15. Nxe6 {[%clk 0:02:23]}  fxe6 {[%clk 0:02:28]} 16. Rxd8+ {[%clk 0:02:17]}  Kxd8 {[%clk 0:02:27]} 17. Rd1+ {[%clk 0:02:17]}  Kc8 {[%clk 0:02:26]} 18. Ne2 {[%clk 0:02:08]}  c5 {[%clk 0:02:17]} 19. c4 {[%clk 0:02:03]}  Be7 {[%clk 0:02:16]} 20. f4 {[%clk 0:01:59]}  Rd8 {[%clk 0:01:59]} 21. Rxd8+ {[%clk 0:01:58]}  Kxd8 {[%clk 0:01:59]} 22. Kf2 {[%clk 0:01:59]}  h5 {[%clk 0:01:24]} 23. g4 {[%clk 0:01:58]}  hxg4 {[%clk 0:01:24]} 24. hxg4 {[%clk 0:01:58]}  Bh4+ {[%clk 0:01:22]} 25. Kf3 {[%clk 0:01:56]}  Ne7 {[%clk 0:01:20]} 26. Nc3 {[%clk 0:01:39]}  a6 {[%clk 0:01:14]} 27. Ne4 {[%clk 0:01:38]}  b6 {[%clk 0:01:14]} 28. Ng3 {[%clk 0:01:23]}  Bxg3 {[%clk 0:01:10]} 29. Kxg3 {[%clk 0:01:23]}  Ke8 {[%clk 0:01:05]} 30. Kh4 {[%clk 0:01:19]}  Kf7 {[%clk 0:01:04]} 31. Kg5 {[%clk 0:01:16]}  g6 {[%clk 0:01:05]} 32. Bc1 {[%clk 0:01:09]}  Nc6 {[%clk 0:01:04]} 33. Be3 {[%clk 0:00:54]}  a5 {[%clk 0:01:00]} 34. Bf2 {[%clk 0:00:42]}  Nd4 {[%clk 0:00:46]} 35. Kh4 {[%clk 0:00:26]}  Ne2 {[%clk 0:00:27]} 36. Be3 {[%clk 0:00:26]}  Nc3 {[%clk 0:00:22]} 37. a4 {[%clk 0:00:20]}  Na2 {[%clk 0:00:19]} 38. Bd2 {[%clk 0:00:18]}  Nb4 {[%clk 0:00:12]} 39. Bxb4 {[%clk 0:00:18]}  cxb4 {[%clk 0:00:09]} 40. Kg5 {[%clk 0:00:19]}  c6 {[%clk 0:00:07]} 41. f5 {[%clk 0:00:20]}  gxf5 {[%clk 0:00:08]} 42. gxf5 {[%clk 0:00:20]}  exf5 {[%clk 0:00:09]} 43. Kxf5 {[%clk 0:00:19]}  Ke7 {[%clk 0:00:07]} 44. e6 {[%clk 0:00:18]}  Ke8 {[%clk 0:00:05]} 45. Kf6 {[%clk 0:00:16]}  Kf8 {[%clk 0:00:05]} 46. e7+ {[%clk 0:00:15]}  Ke8 {[%clk 0:00:05]} 47. Ke6 {[%clk 0:00:15]}  b5 {[%clk 0:00:01]} 48. cxb5 {[%clk 0:00:14]}  cxb5 {[%clk 0:00:01]} 49. axb5 {[%clk 0:00:15]}  a4 {[%clk 0:00:02]} 50. b6 {[%clk 0:00:15]}  axb3 {[%clk 0:00:00]} 51. b7 {[%clk 0:00:15]} 1-0

[Event "December 19 Early 2023"]
[Site "https://www.chess.com"]
[Date "2023.12.19"]
[Round "3"]
[White "Zilleruelo Irizarry, Diego"]
[Black "Tao, Sihan"]
[Result "1/2-1/2"]
[Board "151"]
[TimeControl "180+1"]
[WhiteFideId "3101460"]
[BlackFideId "30982677"]
[WhiteElo "2009"]
[BlackElo "1943"]
[WhiteTeam "PUR"]
[BlackTeam "USA"]
[WhiteClock "0:00:09"]
[BlackClock "0:00:10"]

1. e4 {[%clk 0:02:51]}  c5 {[%clk 0:02:57]} 2. Nf3 {[%clk 0:02:50]}  d6 {[%clk 0:02:56]} 3. d4 {[%clk 0:02:50]}  cxd4 {[%clk 0:02:57]} 4. Qxd4 {[%clk 0:02:51]}  Nf6 {[%clk 0:02:56]} 5. Be2 {[%clk 0:02:50]}  Nc6 {[%clk 0:02:55]} 6. Qe3 {[%clk 0:02:51]}  g6 {[%clk 0:02:39]} 7. h3 {[%clk 0:02:50]}  Bg7 {[%clk 0:02:39]} 8. O-O {[%clk 0:02:50]}  O-O {[%clk 0:02:39]} 9. Rd1 {[%clk 0:02:51]}  Bd7 {[%clk 0:02:35]} 10. Nc3 {[%clk 0:02:34]}  Qc7 {[%clk 0:02:16]} 11. a3 {[%clk 0:02:31]}  a6 {[%clk 0:02:12]} 12. Qg5 {[%clk 0:02:31]}  Rac8 {[%clk 0:02:07]} 13. Qh4 {[%clk 0:02:30]}  h5 {[%clk 0:01:58]} 14. Bg5 {[%clk 0:02:16]}  Rfe8 {[%clk 0:01:47]} 15. Rac1 {[%clk 0:01:33]}  Na5 {[%clk 0:01:41]} 16. Qf4 {[%clk 0:01:19]}  Be6 {[%clk 0:01:25]} 17. Nd5 {[%clk 0:01:18]}  Bxd5 {[%clk 0:01:15]} 18. exd5 {[%clk 0:01:19]}  Nc4 {[%clk 0:01:16]} 19. b3 {[%clk 0:01:11]}  Nxa3 {[%clk 0:01:00]} 20. c4 {[%clk 0:01:11]}  Nh7 {[%clk 0:01:00]} 21. Bh6 {[%clk 0:01:07]}  b5 {[%clk 0:00:50]} 22. Bxg7 {[%clk 0:01:01]}  Kxg7 {[%clk 0:00:49]} 23. cxb5 {[%clk 0:00:55]}  Qb6 {[%clk 0:00:48]} 24. bxa6 {[%clk 0:00:50]}  Nb5 {[%clk 0:00:48]} 25. Rxc8 {[%clk 0:00:44]}  Rxc8 {[%clk 0:00:48]} 26. Qb4 {[%clk 0:00:45]}  Rb8 {[%clk 0:00:44]} 27. Qxb5 {[%clk 0:00:32]}  Qxb5 {[%clk 0:00:45]} 28. Bxb5 {[%clk 0:00:32]}  Rxb5 {[%clk 0:00:46]} 29. Ra1 {[%clk 0:00:30]}  Rb8 {[%clk 0:00:46]} 30. a7 {[%clk 0:00:30]}  Ra8 {[%clk 0:00:47]} 31. b4 {[%clk 0:00:31]}  Nf6 {[%clk 0:00:47]} 32. b5 {[%clk 0:00:32]}  Nxd5 {[%clk 0:00:47]} 33. Nd4 {[%clk 0:00:32]}  Nb6 {[%clk 0:00:45]} 34. Nc6 {[%clk 0:00:31]}  Kf8 {[%clk 0:00:44]} 35. Ra6 {[%clk 0:00:31]}  Nd7 {[%clk 0:00:38]} 36. b6 {[%clk 0:00:31]}  Nc5 {[%clk 0:00:38]} 37. b7 {[%clk 0:00:21]}  Nxb7 {[%clk 0:00:32]} 38. Rb6 {[%clk 0:00:22]}  Rxa7 {[%clk 0:00:32]} 39. Nxa7 {[%clk 0:00:22]}  Nc5 {[%clk 0:00:33]} 40. Rb8+ {[%clk 0:00:21]}  Kg7 {[%clk 0:00:33]} 41. Nc6 {[%clk 0:00:22]}  Kf6 {[%clk 0:00:33]} 42. Re8 {[%clk 0:00:21]}  e6 {[%clk 0:00:31]} 43. Nd8 {[%clk 0:00:22]}  Nd7 {[%clk 0:00:28]} 44. Kf1 {[%clk 0:00:20]}  d5 {[%clk 0:00:27]} 45. Ke2 {[%clk 0:00:20]}  Ne5 {[%clk 0:00:24]} 46. f4 {[%clk 0:00:20]}  Nc4 {[%clk 0:00:24]} 47. g4 {[%clk 0:00:20]}  hxg4 {[%clk 0:00:24]} 48. hxg4 {[%clk 0:00:20]}  Nd6 {[%clk 0:00:24]} 49. Nc6 {[%clk 0:00:17]}  Kg7 {[%clk 0:00:23]} 50. Rd8 {[%clk 0:00:16]}  Ne4 {[%clk 0:00:21]} 51. Rd7 {[%clk 0:00:14]}  Nf6 {[%clk 0:00:21]} 52. Re7 {[%clk 0:00:13]}  Nxg4 {[%clk 0:00:21]} 53. Ne5 {[%clk 0:00:14]}  Nh6 {[%clk 0:00:21]} 54. Kf3 {[%clk 0:00:13]}  Kf6 {[%clk 0:00:21]} 55. Rd7 {[%clk 0:00:13]}  Kg7 {[%clk 0:00:20]} 56. Nc6 {[%clk 0:00:09]}  Kf6 {[%clk 0:00:21]} 57. Nd8 {[%clk 0:00:09]}  Kg7 {[%clk 0:00:20]} 58. Kg3 {[%clk 0:00:09]}  Kf6 {[%clk 0:00:20]} 59. Kh4 {[%clk 0:00:09]}  Nf5+ {[%clk 0:00:20]} 60. Kg4 {[%clk 0:00:10]}  Nh6+ {[%clk 0:00:21]} 61. Kf3 {[%clk 0:00:10]}  e5 {[%clk 0:00:06]} 62. Rxd5 {[%clk 0:00:07]}  exf4 {[%clk 0:00:05]} 63. Kxf4 {[%clk 0:00:08]}  Nf5 {[%clk 0:00:06]} 64. Rd1 {[%clk 0:00:07]}  Ne7 {[%clk 0:00:06]} 65. Nb7 {[%clk 0:00:06]}  Ke6 {[%clk 0:00:06]} 66. Nd8+ {[%clk 0:00:06]}  Kf6 {[%clk 0:00:06]} 67. Nb7 {[%clk 0:00:06]}  Ke6 {[%clk 0:00:07]} 68. Kg5 {[%clk 0:00:07]}  Nf5 {[%clk 0:00:07]} 69. Nd8+ {[%clk 0:00:06]}  Ke7 {[%clk 0:00:07]} 70. Nxf7 {[%clk 0:00:06]}  Kxf7 {[%clk 0:00:07]} 71. Rf1 {[%clk 0:00:07]}  Kg7 {[%clk 0:00:07]} 72. Re1 {[%clk 0:00:08]}  Kf7 {[%clk 0:00:07]} 73. Rf1 {[%clk 0:00:08]}  Ke6 {[%clk 0:00:08]} 74. Ra1 {[%clk 0:00:08]}  Kf7 {[%clk 0:00:08]} 75. Ra7+ {[%clk 0:00:08]}  Ne7 {[%clk 0:00:09]} 76. Rb7 {[%clk 0:00:08]}  Ke6 {[%clk 0:00:09]} 77. Rb6+ {[%clk 0:00:07]}  Kf7 {[%clk 0:00:10]} 78. Rb7 {[%clk 0:00:08]}  Ke6 {[%clk 0:00:10]} 79. Kh6 {[%clk 0:00:08]}  Kf7 {[%clk 0:00:10]} 80. Kg5 {[%clk 0:00:09]} 1/2-1/2

[Event "December 19 Early 2023"]
[Site "https://www.chess.com"]
[Date "2023.12.19"]
[Round "3"]
[White "Toman, Ondrej"]
[Black "Limontaite, Simona"]
[Result "1-0"]
[Board "154"]
[TimeControl "180+1"]
[WhiteFideId "344516"]
[BlackFideId "12802506"]
[WhiteElo "2157"]
[BlackElo "2092"]
[WhiteTeam "CZE"]
[BlackTeam "LTU"]
[WhiteClock "0:00:38"]
[BlackClock "0:00:00"]

1. d4 {[%clk 0:03:00]}  Nf6 {[%clk 0:02:55]} 2. Bg5 {[%clk 0:03:01]}  e6 {[%clk 0:02:53]} 3. Nd2 {[%clk 0:03:00]}  d5 {[%clk 0:02:53]} 4. e3 {[%clk 0:03:01]}  Be7 {[%clk 0:02:53]} 5. Bd3 {[%clk 0:03:01]}  O-O {[%clk 0:02:52]} 6. f4 {[%clk 0:03:01]}  Nbd7 {[%clk 0:02:52]} 7. Ngf3 {[%clk 0:03:00]}  b6 {[%clk 0:02:51]} 8. O-O {[%clk 0:02:58]}  Bb7 {[%clk 0:02:51]} 9. Ne5 {[%clk 0:02:48]}  Ne4 {[%clk 0:02:50]} 10. Bxe7 {[%clk 0:02:46]}  Qxe7 {[%clk 0:02:50]} 11. Bxe4 {[%clk 0:02:41]}  dxe4 {[%clk 0:02:50]} 12. c4 {[%clk 0:02:39]}  f6 {[%clk 0:02:41]} 13. Nxd7 {[%clk 0:02:38]}  Qxd7 {[%clk 0:02:42]} 14. Qc2 {[%clk 0:02:37]}  f5 {[%clk 0:02:41]} 15. Rfd1 {[%clk 0:02:34]}  Qe7 {[%clk 0:02:23]} 16. Qc3 {[%clk 0:02:17]}  g5 {[%clk 0:02:00]} 17. Rf1 {[%clk 0:02:11]}  Qg7 {[%clk 0:01:48]} 18. c5 {[%clk 0:02:04]}  Bd5 {[%clk 0:01:45]} 19. b4 {[%clk 0:01:58]}  gxf4 {[%clk 0:01:39]} 20. Rxf4 {[%clk 0:01:58]}  a5 {[%clk 0:01:35]} 21. a3 {[%clk 0:01:55]}  axb4 {[%clk 0:01:34]} 22. axb4 {[%clk 0:01:56]}  Rxa1+ {[%clk 0:01:08]} 23. Qxa1 {[%clk 0:01:57]}  Ra8 {[%clk 0:01:08]} 24. Qc3 {[%clk 0:01:56]}  b5 {[%clk 0:00:58]} 25. Rf1 {[%clk 0:01:49]}  Qg4 {[%clk 0:00:48]} 26. Qc1 {[%clk 0:01:26]}  Ra2 {[%clk 0:00:39]} 27. Qd1 {[%clk 0:01:20]}  Qg5 {[%clk 0:00:27]} 28. Qe1 {[%clk 0:01:14]}  h5 {[%clk 0:00:12]} 29. Kh1 {[%clk 0:01:14]}  Kh7 {[%clk 0:00:12]} 30. Rf2 {[%clk 0:01:09]}  Kh6 {[%clk 0:00:09]} 31. Nf1 {[%clk 0:01:07]}  Ra3 {[%clk 0:00:04]} 32. Rf4 {[%clk 0:01:06]}  Qg6 {[%clk 0:00:03]} 33. Kg1 {[%clk 0:01:03]}  Bc4 {[%clk 0:00:04]} 34. Ng3 {[%clk 0:00:58]}  Ra2 {[%clk 0:00:03]} 35. Rh4 {[%clk 0:00:56]}  Kg7 {[%clk 0:00:03]} 36. Nxh5+ {[%clk 0:00:55]}  Kf7 {[%clk 0:00:03]} 37. Nf4 {[%clk 0:00:55]}  Qg5 {[%clk 0:00:03]} 38. Rh7+ {[%clk 0:00:53]}  Ke8 {[%clk 0:00:03]} 39. h4 {[%clk 0:00:48]}  Qg4 {[%clk 0:00:03]} 40. h5 {[%clk 0:00:47]}  Bd3 {[%clk 0:00:03]} 41. h6 {[%clk 0:00:44]}  Rb2 {[%clk 0:00:00]} 42. Rg7 {[%clk 0:00:38]} 1-0